[Event "December 5 Early 2023"]
[Site "https://www.chess.com"]
[Date "2023.12.05"]
[Round "8"]
[White "Liu, Casper"]
[Black "Hon, Eric"]
[Result "1-0"]
[Board "131"]
[TimeControl "180+1"]
[WhiteFideId "1454153"]
[BlackFideId "2097117"]
[WhiteElo "2445"]
[BlackElo "2277"]
[WhiteTeam "DEN"]
[BlackTeam "USA"]
[WhiteClock "0:00:07"]
[BlackClock "0:00:00"]

1. d4 {[%clk 0:03:00]}  Nf6 {[%clk 0:03:00]} 2. Bf4 {[%clk 0:03:01]}  c5 {[%clk 0:02:59]} 3. dxc5 {[%clk 0:02:58]}  Nc6 {[%clk 0:02:56]} 4. Nf3 {[%clk 0:02:58]}  e6 {[%clk 0:02:53]} 5. Bd6 {[%clk 0:02:58]}  Be7 {[%clk 0:02:26]} 6. e3 {[%clk 0:02:57]}  O-O {[%clk 0:02:26]} 7. c3 {[%clk 0:02:54]}  Bxd6 {[%clk 0:02:22]} 8. cxd6 {[%clk 0:02:55]}  Qb6 {[%clk 0:02:22]} 9. b3 {[%clk 0:02:35]}  Ne4 {[%clk 0:02:04]} 10. Bd3 {[%clk 0:02:30]}  Nxd6 {[%clk 0:02:00]} 11. Bxh7+ {[%clk 0:02:30]}  Kxh7 {[%clk 0:02:01]} 12. Qxd6 {[%clk 0:02:30]}  Kg8 {[%clk 0:01:53]} 13. Nbd2 {[%clk 0:02:25]}  Nd8 {[%clk 0:01:49]} 14. Qf4 {[%clk 0:02:19]}  f6 {[%clk 0:01:46]} 15. Nc4 {[%clk 0:02:13]}  Qc6 {[%clk 0:01:34]} 16. Qd6 {[%clk 0:01:53]}  Nf7 {[%clk 0:01:32]} 17. Qxc6 {[%clk 0:01:47]}  bxc6 {[%clk 0:01:25]} 18. O-O-O {[%clk 0:01:48]}  d5 {[%clk 0:01:25]} 19. Na5 {[%clk 0:01:48]}  Bd7 {[%clk 0:01:22]} 20. Kb2 {[%clk 0:01:34]}  Rac8 {[%clk 0:01:18]} 21. c4 {[%clk 0:01:27]}  Rfd8 {[%clk 0:01:09]} 22. Nb7 {[%clk 0:01:26]}  Rf8 {[%clk 0:01:09]} 23. Nc5 {[%clk 0:01:27]}  Rc7 {[%clk 0:01:07]} 24. Nd4 {[%clk 0:01:24]}  Re8 {[%clk 0:01:02]} 25. cxd5 {[%clk 0:01:23]}  cxd5 {[%clk 0:01:00]} 26. Rc1 {[%clk 0:01:22]}  e5 {[%clk 0:00:52]} 27. Nxd7 {[%clk 0:01:18]}  Rxd7 {[%clk 0:00:51]} 28. Nc6 {[%clk 0:01:11]}  d4 {[%clk 0:00:47]} 29. Rhd1 {[%clk 0:01:10]}  d3 {[%clk 0:00:43]} 30. e4 {[%clk 0:01:06]}  Re6 {[%clk 0:00:38]} 31. Nb4 {[%clk 0:01:00]}  Red6 {[%clk 0:00:35]} 32. Nd5 {[%clk 0:01:01]}  f5 {[%clk 0:00:27]} 33. f3 {[%clk 0:01:01]}  fxe4 {[%clk 0:00:24]} 34. fxe4 {[%clk 0:01:02]}  Ng5 {[%clk 0:00:24]} 35. Rxd3 {[%clk 0:00:22]}  Nxe4 {[%clk 0:00:19]} 36. Rcd1 {[%clk 0:00:20]}  Nf2 {[%clk 0:00:14]} 37. Nf6+ {[%clk 0:00:20]}  Rxf6 {[%clk 0:00:11]} 38. Rxd7 {[%clk 0:00:21]}  Nxd1+ {[%clk 0:00:12]} 39. Rxd1 {[%clk 0:00:22]}  Rf2+ {[%clk 0:00:12]} 40. Ka3 {[%clk 0:00:19]}  Rxg2 {[%clk 0:00:13]} 41. Re1 {[%clk 0:00:16]}  Rxh2 {[%clk 0:00:12]} 42. Rxe5 {[%clk 0:00:16]}  Kf7 {[%clk 0:00:12]} 43. Ra5 {[%clk 0:00:16]}  Kf6 {[%clk 0:00:12]} 44. Rxa7 {[%clk 0:00:16]}  g5 {[%clk 0:00:13]} 45. Ra8 {[%clk 0:00:14]}  Kf7 {[%clk 0:00:11]} 46. Kb4 {[%clk 0:00:14]}  g4 {[%clk 0:00:09]} 47. Ra7+ {[%clk 0:00:14]}  Kf6 {[%clk 0:00:10]} 48. Ra8 {[%clk 0:00:15]}  Rh7 {[%clk 0:00:09]} 49. Rf8+ {[%clk 0:00:14]}  Rf7 {[%clk 0:00:09]} 50. Rg8 {[%clk 0:00:09]}  Rg7 {[%clk 0:00:09]} 51. Rf8+ {[%clk 0:00:07]}  Ke5 {[%clk 0:00:09]} 52. a4 {[%clk 0:00:06]}  g3 {[%clk 0:00:10]} 53. Rf1 {[%clk 0:00:07]}  g2 {[%clk 0:00:09]} 54. Rg1 {[%clk 0:00:07]}  Ke4 {[%clk 0:00:09]} 55. a5 {[%clk 0:00:07]}  Kf3 {[%clk 0:00:09]} 56. a6 {[%clk 0:00:07]}  Ra7 {[%clk 0:00:02]} 57. Kb5 {[%clk 0:00:07]}  Ra8 {[%clk 0:00:02]} 58. b4 {[%clk 0:00:07]}  Rb8+ {[%clk 0:00:02]} 59. Ka5 {[%clk 0:00:06]}  Kf2 {[%clk 0:00:03]} 60. Rxg2+ {[%clk 0:00:07]}  Kxg2 {[%clk 0:00:04]} 61. b5 {[%clk 0:00:06]}  Rf8 {[%clk 0:00:04]} 62. a7 {[%clk 0:00:06]}  Kf3 {[%clk 0:00:04]} 63. b6 {[%clk 0:00:07]}  Ke4 {[%clk 0:00:04]} 64. b7 {[%clk 0:00:07]}  Rf5+ {[%clk 0:00:00]} 65. Ka4 {[%clk 0:00:07]} 1-0

[Event "December 5 Early 2023"]
[Site "https://www.chess.com"]
[Date "2023.12.05"]
[Round "8"]
[White "Eilers, Stefan"]
[Black "Rodriguez Avila, Alvaro"]
[Result "1-0"]
[Board "135"]
[TimeControl "180+1"]
[WhiteFideId "4609565"]
[BlackFideId "24570249"]
[WhiteElo "2438"]
[BlackElo "2241"]
[WhiteTeam "GER"]
[BlackTeam "ESP"]
[WhiteClock "0:00:04"]
[BlackClock "0:00:00"]

1. d4 {[%clk 0:03:00]}  Nf6 {[%clk 0:02:58]} 2. Nf3 {[%clk 0:03:01]}  e6 {[%clk 0:02:59]} 3. g3 {[%clk 0:03:01]}  d5 {[%clk 0:02:58]} 4. Bg2 {[%clk 0:03:01]}  Be7 {[%clk 0:02:58]} 5. O-O {[%clk 0:03:02]}  O-O {[%clk 0:02:58]} 6. c4 {[%clk 0:03:02]}  dxc4 {[%clk 0:02:59]} 7. Ne5 {[%clk 0:03:03]}  c5 {[%clk 0:02:56]} 8. dxc5 {[%clk 0:03:00]}  Bxc5 {[%clk 0:02:57]} 9. Qxd8 {[%clk 0:02:58]}  Rxd8 {[%clk 0:02:57]} 10. Na3 {[%clk 0:02:48]}  c3 {[%clk 0:02:48]} 11. Nb5 {[%clk 0:02:43]}  Na6 {[%clk 0:02:26]} 12. Nxc3 {[%clk 0:02:31]}  Rb8 {[%clk 0:02:09]} 13. Nd3 {[%clk 0:02:19]}  Bd7 {[%clk 0:01:25]} 14. Nxc5 {[%clk 0:02:14]}  Nxc5 {[%clk 0:01:26]} 15. Be3 {[%clk 0:02:14]}  Rbc8 {[%clk 0:01:21]} 16. Rfd1 {[%clk 0:02:11]}  b6 {[%clk 0:01:18]} 17. Rd2 {[%clk 0:02:01]}  Be8 {[%clk 0:01:10]} 18. Rad1 {[%clk 0:01:56]}  Rxd2 {[%clk 0:01:10]} 19. Rxd2 {[%clk 0:01:57]}  Kf8 {[%clk 0:01:10]} 20. Bf4 {[%clk 0:01:51]}  h6 {[%clk 0:01:05]} 21. h3 {[%clk 0:01:45]}  Bc6 {[%clk 0:00:53]} 22. f3 {[%clk 0:01:35]}  Ke8 {[%clk 0:00:48]} 23. g4 {[%clk 0:01:27]}  Nd5 {[%clk 0:00:48]} 24. Nxd5 {[%clk 0:01:22]}  Bxd5 {[%clk 0:00:49]} 25. b3 {[%clk 0:01:22]}  Nd7 {[%clk 0:00:46]} 26. e4 {[%clk 0:01:19]}  Bb7 {[%clk 0:00:45]} 27. Bf1 {[%clk 0:01:18]}  e5 {[%clk 0:00:31]} 28. Be3 {[%clk 0:01:12]}  f6 {[%clk 0:00:28]} 29. Bc4 {[%clk 0:01:08]}  Rd8 {[%clk 0:00:27]} 30. Kf2 {[%clk 0:00:52]}  Ke7 {[%clk 0:00:25]} 31. h4 {[%clk 0:00:48]}  Bc6 {[%clk 0:00:25]} 32. g5 {[%clk 0:00:47]}  hxg5 {[%clk 0:00:25]} 33. hxg5 {[%clk 0:00:48]}  Rh8 {[%clk 0:00:24]} 34. Kg3 {[%clk 0:00:43]}  Rh1 {[%clk 0:00:21]} 35. gxf6+ {[%clk 0:00:40]}  gxf6 {[%clk 0:00:22]} 36. a4 {[%clk 0:00:40]}  Re1 {[%clk 0:00:20]} 37. Bf2 {[%clk 0:00:34]}  Rc1 {[%clk 0:00:20]} 38. a5 {[%clk 0:00:32]}  Rc3 {[%clk 0:00:20]} 39. Be1 {[%clk 0:00:25]}  Re3 {[%clk 0:00:17]} 40. Kf2 {[%clk 0:00:23]}  Rxe1 {[%clk 0:00:10]} 41. Kxe1 {[%clk 0:00:23]}  bxa5 {[%clk 0:00:11]} 42. Ra2 {[%clk 0:00:23]}  a4 {[%clk 0:00:04]} 43. bxa4 {[%clk 0:00:22]}  Nc5 {[%clk 0:00:04]} 44. Bb5 {[%clk 0:00:21]}  Bb7 {[%clk 0:00:03]} 45. Rc2 {[%clk 0:00:19]}  Kd6 {[%clk 0:00:04]} 46. Ke2 {[%clk 0:00:17]}  Ne6 {[%clk 0:00:04]} 47. Ke3 {[%clk 0:00:15]}  Nd4 {[%clk 0:00:04]} 48. Rd2 {[%clk 0:00:16]}  Kc5 {[%clk 0:00:05]} 49. Be8 {[%clk 0:00:15]}  a5 {[%clk 0:00:04]} 50. f4 {[%clk 0:00:16]}  Ba6 {[%clk 0:00:04]} 51. fxe5 {[%clk 0:00:14]}  fxe5 {[%clk 0:00:05]} 52. Rd1 {[%clk 0:00:14]}  Bc4 {[%clk 0:00:04]} 53. Rh1 {[%clk 0:00:11]}  Nc2+ {[%clk 0:00:02]} 54. Kd2 {[%clk 0:00:10]}  Nb4 {[%clk 0:00:02]} 55. Ke3 {[%clk 0:00:07]}  Nc2+ {[%clk 0:00:02]} 56. Kf3 {[%clk 0:00:06]}  Nd4+ {[%clk 0:00:02]} 57. Kg4 {[%clk 0:00:06]}  Ne2 {[%clk 0:00:02]} 58. Re1 {[%clk 0:00:05]}  Kd4 {[%clk 0:00:02]} 59. Bb5 {[%clk 0:00:04]}  Nc3 {[%clk 0:00:02]} 60. Bxc4 {[%clk 0:00:03]}  Kxc4 {[%clk 0:00:02]} 61. Kf5 {[%clk 0:00:04]}  Kd4 {[%clk 0:00:03]} 62. Rc1 {[%clk 0:00:03]}  Nxa4 {[%clk 0:00:03]} 63. Rd1+ {[%clk 0:00:04]}  Kc4 {[%clk 0:00:03]} 64. Kxe5 {[%clk 0:00:04]}  Nc3 {[%clk 0:00:04]} 65. Rc1 {[%clk 0:00:05]}  a4 {[%clk 0:00:04]} 66. Kf5 {[%clk 0:00:05]}  a3 {[%clk 0:00:03]} 67. e5 {[%clk 0:00:05]}  a2 {[%clk 0:00:03]} 68. Ra1 {[%clk 0:00:05]}  Kd5 {[%clk 0:00:02]} 69. e6 {[%clk 0:00:04]}  Kd6 {[%clk 0:00:03]} 70. Kf6 {[%clk 0:00:04]}  Nd5+ {[%clk 0:00:03]} 71. Kf7 {[%clk 0:00:05]}  Nc3 {[%clk 0:00:02]} 72. e7 {[%clk 0:00:03]}  Nb1 {[%clk 0:00:00]} 73. e8=Q {[%clk 0:00:04]} 1-0

[Event "December 5 Early 2023"]
[Site "https://www.chess.com"]
[Date "2023.12.05"]
[Round "8"]
[White "Golubenko, Valentina"]
[Black "Latorre, Vincent"]
[Result "1/2-1/2"]
[Board "136"]
[TimeControl "180+1"]
[WhiteFideId "4501993"]
[BlackFideId "2636891"]
[WhiteElo "2224"]
[BlackElo "2438"]
[WhiteTeam "CRO"]
[BlackTeam "CAN"]
[WhiteClock "0:00:11"]
[BlackClock "0:00:02"]

1. e4 {[%clk 0:03:00]}  g6 {[%clk 0:02:57]} 2. d4 {[%clk 0:02:59]}  Bg7 {[%clk 0:02:55]} 3. Nf3 {[%clk 0:02:59]}  d6 {[%clk 0:02:54]} 4. c4 {[%clk 0:02:56]}  Nf6 {[%clk 0:02:52]} 5. Bd3 {[%clk 0:02:55]}  O-O {[%clk 0:02:52]} 6. h3 {[%clk 0:02:55]}  Nbd7 {[%clk 0:02:45]} 7. O-O {[%clk 0:02:54]}  e5 {[%clk 0:02:44]} 8. dxe5 {[%clk 0:02:49]}  Nxe5 {[%clk 0:02:24]} 9. Nc3 {[%clk 0:02:42]}  Nxd3 {[%clk 0:02:22]} 10. Qxd3 {[%clk 0:02:42]}  Nd7 {[%clk 0:02:22]} 11. Be3 {[%clk 0:02:38]}  Re8 {[%clk 0:02:11]} 12. Rfd1 {[%clk 0:02:32]}  Ne5 {[%clk 0:01:43]} 13. Nxe5 {[%clk 0:02:28]}  Bxe5 {[%clk 0:01:44]} 14. Qc2 {[%clk 0:02:23]}  Be6 {[%clk 0:01:41]} 15. Nd5 {[%clk 0:02:17]}  c6 {[%clk 0:01:20]} 16. Nf4 {[%clk 0:02:06]}  Qe7 {[%clk 0:01:20]} 17. Nd3 {[%clk 0:02:00]}  Bg7 {[%clk 0:01:14]} 18. Rac1 {[%clk 0:01:47]}  f5 {[%clk 0:01:07]} 19. Nf4 {[%clk 0:01:33]}  Bd7 {[%clk 0:01:02]} 20. exf5 {[%clk 0:01:30]}  Bxf5 {[%clk 0:01:03]} 21. Qd2 {[%clk 0:01:29]}  Rad8 {[%clk 0:00:57]} 22. Bxa7 {[%clk 0:01:21]}  Qg5 {[%clk 0:00:47]} 23. Be3 {[%clk 0:01:07]}  Qe7 {[%clk 0:00:38]} 24. Bb6 {[%clk 0:00:53]}  Rd7 {[%clk 0:00:38]} 25. Re1 {[%clk 0:00:52]}  Qf8 {[%clk 0:00:35]} 26. Rxe8 {[%clk 0:00:46]}  Qxe8 {[%clk 0:00:36]} 27. Re1 {[%clk 0:00:45]}  Re7 {[%clk 0:00:37]} 28. Rd1 {[%clk 0:00:36]}  Re4 {[%clk 0:00:21]} 29. Be3 {[%clk 0:00:30]}  Be5 {[%clk 0:00:17]} 30. b3 {[%clk 0:00:22]}  Qf7 {[%clk 0:00:13]} 31. Nd3 {[%clk 0:00:20]}  Bg7 {[%clk 0:00:11]} 32. f3 {[%clk 0:00:19]}  Re8 {[%clk 0:00:11]} 33. Bf2 {[%clk 0:00:19]}  h5 {[%clk 0:00:10]} 34. Nf4 {[%clk 0:00:16]}  Bf8 {[%clk 0:00:11]} 35. Nd3 {[%clk 0:00:15]}  Kh7 {[%clk 0:00:11]} 36. Qf4 {[%clk 0:00:14]}  Qf6 {[%clk 0:00:10]} 37. g4 {[%clk 0:00:13]}  Bh6 {[%clk 0:00:10]} 38. Qg3 {[%clk 0:00:12]}  Bxd3 {[%clk 0:00:09]} 39. Rxd3 {[%clk 0:00:11]}  Bf4 {[%clk 0:00:10]} 40. Qh4 {[%clk 0:00:10]}  Bg5 {[%clk 0:00:11]} 41. Qg3 {[%clk 0:00:10]}  Bf4 {[%clk 0:00:04]} 42. Qh4 {[%clk 0:00:10]}  Bg5 {[%clk 0:00:01]} 43. Qg3 {[%clk 0:00:11]}  Bf4 {[%clk 0:00:02]} 1/2-1/2

[Event "December 5 Early 2023"]
[Site "https://www.chess.com"]
[Date "2023.12.05"]
[Round "8"]
[White "Dimitrijevic, Darko"]
[Black "Topalov, Aleksandar"]
[Result "1-0"]
[Board "137"]
[TimeControl "180+1"]
[WhiteFideId "14500892"]
[BlackFideId "925659"]
[WhiteElo "2214"]
[BlackElo "2435"]
[WhiteTeam "CRO"]
[BlackTeam "SRB"]
[WhiteClock "0:00:43"]
[BlackClock "0:00:12"]

1. g3 {[%clk 0:02:20]}  Nf6 {[%clk 0:02:58]} 2. Bg2 {[%clk 0:02:20]}  g6 {[%clk 0:02:57]} 3. b3 {[%clk 0:02:20]}  Bg7 {[%clk 0:02:57]} 4. Bb2 {[%clk 0:02:16]}  O-O {[%clk 0:02:57]} 5. d3 {[%clk 0:02:13]}  c5 {[%clk 0:02:56]} 6. Nd2 {[%clk 0:02:09]}  d6 {[%clk 0:02:56]} 7. e4 {[%clk 0:02:09]}  Nc6 {[%clk 0:02:56]} 8. Ne2 {[%clk 0:02:08]}  Rb8 {[%clk 0:02:43]} 9. a4 {[%clk 0:02:07]}  a6 {[%clk 0:02:40]} 10. O-O {[%clk 0:02:04]}  b5 {[%clk 0:02:41]} 11. axb5 {[%clk 0:02:03]}  axb5 {[%clk 0:02:41]} 12. h3 {[%clk 0:02:02]}  Bb7 {[%clk 0:02:29]} 13. c3 {[%clk 0:02:00]}  Nd7 {[%clk 0:02:15]} 14. Qc2 {[%clk 0:01:58]}  Qb6 {[%clk 0:02:10]} 15. Kh2 {[%clk 0:01:53]}  Ra8 {[%clk 0:02:08]} 16. f4 {[%clk 0:01:51]}  h5 {[%clk 0:01:50]} 17. Nf3 {[%clk 0:01:49]}  b4 {[%clk 0:01:38]} 18. c4 {[%clk 0:01:45]}  Nd4 {[%clk 0:01:31]} 19. Nexd4 {[%clk 0:01:43]}  cxd4 {[%clk 0:01:31]} 20. Qf2 {[%clk 0:01:33]}  e5 {[%clk 0:01:25]} 21. f5 {[%clk 0:01:32]}  Rxa1 {[%clk 0:01:18]} 22. Rxa1 {[%clk 0:01:31]}  Ra8 {[%clk 0:01:16]} 23. Rxa8+ {[%clk 0:01:30]}  Bxa8 {[%clk 0:01:17]} 24. fxg6 {[%clk 0:01:30]}  fxg6 {[%clk 0:01:17]} 25. Ng5 {[%clk 0:01:30]}  Nf6 {[%clk 0:01:05]} 26. h4 {[%clk 0:01:28]}  Qd8 {[%clk 0:00:58]} 27. Bh3 {[%clk 0:01:27]}  Qe7 {[%clk 0:00:47]} 28. Bc1 {[%clk 0:01:25]}  Bc6 {[%clk 0:00:44]} 29. Qa2 {[%clk 0:01:20]}  Ng4+ {[%clk 0:00:39]} 30. Bxg4 {[%clk 0:01:19]}  hxg4 {[%clk 0:00:39]} 31. Qa6 {[%clk 0:01:13]}  Be8 {[%clk 0:00:36]} 32. Qc8 {[%clk 0:01:07]}  Bf6 {[%clk 0:00:26]} 33. Qe6+ {[%clk 0:00:55]}  Qxe6 {[%clk 0:00:25]} 34. Nxe6 {[%clk 0:00:55]}  Bd7 {[%clk 0:00:21]} 35. Nc7 {[%clk 0:00:54]}  Bd8 {[%clk 0:00:16]} 36. Nd5 {[%clk 0:00:44]}  Ba5 {[%clk 0:00:12]} 37. Nf6+ {[%clk 0:00:43]} 1-0

[Event "December 5 Early 2023"]
[Site "https://www.chess.com"]
[Date "2023.12.05"]
[Round "8"]
[White "Colonetti, Fabio"]
[Black "Kaplan, Avi Harrison"]
[Result "0-1"]
[Board "139"]
[TimeControl "180+1"]
[WhiteFideId "897612"]
[BlackFideId "30934559"]
[WhiteElo "2271"]
[BlackElo "2456"]
[WhiteTeam "ITA"]
[BlackTeam "USA"]
[WhiteClock "0:00:17"]
[BlackClock "0:00:16"]

1. d4 {[%clk 0:03:00]}  d6 {[%clk 0:02:49]} 2. Nf3 {[%clk 0:02:58]}  Nf6 {[%clk 0:02:48]} 3. Nc3 {[%clk 0:02:58]}  g6 {[%clk 0:02:24]} 4. e4 {[%clk 0:02:57]}  Bg7 {[%clk 0:02:24]} 5. Be2 {[%clk 0:02:55]}  O-O {[%clk 0:02:25]} 6. O-O {[%clk 0:02:56]}  Bg4 {[%clk 0:02:24]} 7. h3 {[%clk 0:02:56]}  Bxf3 {[%clk 0:02:24]} 8. Bxf3 {[%clk 0:02:57]}  Nc6 {[%clk 0:02:24]} 9. Be3 {[%clk 0:02:57]}  e5 {[%clk 0:02:24]} 10. d5 {[%clk 0:02:41]}  Ne7 {[%clk 0:02:16]} 11. g4 {[%clk 0:02:36]}  c6 {[%clk 0:02:02]} 12. g5 {[%clk 0:02:32]}  Ne8 {[%clk 0:02:01]} 13. Bg4 {[%clk 0:02:25]}  f5 {[%clk 0:01:45]} 14. gxf6 {[%clk 0:02:23]}  Nxf6 {[%clk 0:01:46]} 15. Be6+ {[%clk 0:02:23]}  Kh8 {[%clk 0:01:46]} 16. Qd2 {[%clk 0:02:20]}  cxd5 {[%clk 0:01:35]} 17. exd5 {[%clk 0:02:20]}  Nf5 {[%clk 0:01:33]} 18. Bg5 {[%clk 0:02:12]}  Qb6 {[%clk 0:01:17]} 19. Kh1 {[%clk 0:01:33]}  Nd4 {[%clk 0:01:01]} 20. Be3 {[%clk 0:01:29]}  Nh5 {[%clk 0:00:57]} 21. Ne2 {[%clk 0:01:26]}  Qd8 {[%clk 0:00:50]} 22. Nxd4 {[%clk 0:01:25]}  exd4 {[%clk 0:00:50]} 23. Bxd4 {[%clk 0:01:25]}  Qh4 {[%clk 0:00:51]} 24. Bxg7+ {[%clk 0:01:25]}  Nxg7 {[%clk 0:00:51]} 25. Rae1 {[%clk 0:01:17]}  Nxe6 {[%clk 0:00:51]} 26. Rxe6 {[%clk 0:01:15]}  Qxh3+ {[%clk 0:00:50]} 27. Kg1 {[%clk 0:01:16]}  Qg4+ {[%clk 0:00:50]} 28. Kh1 {[%clk 0:01:16]}  Rf3 {[%clk 0:00:48]} 29. Re3 {[%clk 0:01:11]}  Raf8 {[%clk 0:00:25]} 30. Qc3+ {[%clk 0:00:52]}  Kg8 {[%clk 0:00:23]} 31. Qc7 {[%clk 0:00:17]}  Rxe3 {[%clk 0:00:16]} 0-1

[Event "December 5 Early 2023"]
[Site "https://www.chess.com"]
[Date "2023.12.05"]
[Round "8"]
[White "Barbot, Pierre"]
[Black "Petrukhina, Olga"]
[Result "1-0"]
[Board "145"]
[TimeControl "180+1"]
[WhiteFideId "663727"]
[BlackFideId "13703935"]
[WhiteElo "2314"]
[BlackElo "2230"]
[WhiteTeam "FRA"]
[BlackTeam "KAZ"]
[WhiteClock "0:00:04"]
[BlackClock "0:00:05"]

1. e4 {[%clk 0:03:00]}  e6 {[%clk 0:02:59]} 2. d4 {[%clk 0:02:58]}  d5 {[%clk 0:02:59]} 3. Nc3 {[%clk 0:02:58]}  dxe4 {[%clk 0:02:55]} 4. Nxe4 {[%clk 0:02:57]}  Nd7 {[%clk 0:02:55]} 5. Nf3 {[%clk 0:02:52]}  Ngf6 {[%clk 0:02:55]} 6. Bd3 {[%clk 0:02:42]}  Nxe4 {[%clk 0:02:50]} 7. Bxe4 {[%clk 0:02:43]}  Nf6 {[%clk 0:02:50]} 8. Bd3 {[%clk 0:02:42]}  c5 {[%clk 0:02:50]} 9. dxc5 {[%clk 0:02:39]}  Bxc5 {[%clk 0:02:49]} 10. O-O {[%clk 0:02:37]}  Qc7 {[%clk 0:02:38]} 11. Bg5 {[%clk 0:02:33]}  Bd7 {[%clk 0:02:34]} 12. Qd2 {[%clk 0:02:27]}  O-O-O {[%clk 0:02:28]} 13. b4 {[%clk 0:02:16]}  Bd6 {[%clk 0:02:18]} 14. b5 {[%clk 0:02:12]}  h6 {[%clk 0:02:14]} 15. Be3 {[%clk 0:02:08]}  Nd5 {[%clk 0:02:07]} 16. Bd4 {[%clk 0:01:10]}  e5 {[%clk 0:01:42]} 17. Bb2 {[%clk 0:01:06]}  Nf4 {[%clk 0:01:08]} 18. Rfe1 {[%clk 0:00:49]}  Nxd3 {[%clk 0:01:04]} 19. cxd3 {[%clk 0:00:49]}  Bxb5 {[%clk 0:00:50]} 20. Rac1 {[%clk 0:00:44]}  Bc6 {[%clk 0:00:47]} 21. Nxe5 {[%clk 0:00:42]}  Bxe5 {[%clk 0:00:42]} 22. Bxe5 {[%clk 0:00:41]}  Qd7 {[%clk 0:00:37]} 23. Qa5 {[%clk 0:00:35]}  Rhe8 {[%clk 0:00:18]} 24. Re3 {[%clk 0:00:08]}  Rxe5 {[%clk 0:00:14]} 25. Rxe5 {[%clk 0:00:07]}  Qxd3 {[%clk 0:00:12]} 26. h3 {[%clk 0:00:06]}  Kb8 {[%clk 0:00:05]} 27. Qc3 {[%clk 0:00:05]}  Qd6 {[%clk 0:00:04]} 28. Qg3 {[%clk 0:00:04]}  Ka8 {[%clk 0:00:04]} 29. Re3 {[%clk 0:00:03]}  Qd7 {[%clk 0:00:04]} 30. Ra3 {[%clk 0:00:03]}  a6 {[%clk 0:00:04]} 31. Qe3 {[%clk 0:00:03]}  Qd6 {[%clk 0:00:03]} 32. Qb3 {[%clk 0:00:02]}  Qd7 {[%clk 0:00:02]} 33. Rb1 {[%clk 0:00:03]}  Qd6 {[%clk 0:00:02]} 34. Ra5 {[%clk 0:00:02]}  Qd5 {[%clk 0:00:02]} 35. Rxd5 {[%clk 0:00:02]}  Bxd5 {[%clk 0:00:02]} 36. Qb6 {[%clk 0:00:02]}  Rc8 {[%clk 0:00:02]} 37. a4 {[%clk 0:00:02]}  Bc6 {[%clk 0:00:02]} 38. a5 {[%clk 0:00:02]}  Rb8 {[%clk 0:00:02]} 39. Re1 {[%clk 0:00:03]}  Rc8 {[%clk 0:00:03]} 40. Re7 {[%clk 0:00:04]}  Rb8 {[%clk 0:00:04]} 41. Rc7 {[%clk 0:00:04]}  Rd8 {[%clk 0:00:04]} 42. Rxc6 {[%clk 0:00:04]}  Rb8 {[%clk 0:00:05]} 43. Rc7 {[%clk 0:00:04]}  Rc8 {[%clk 0:00:05]} 44. Qxb7# {[%clk 0:00:04]} 1-0

[Event "December 5 Early 2023"]
[Site "https://www.chess.com"]
[Date "2023.12.05"]
[Round "8"]
[White "Shubhi Gupta"]
[Black "Cagara, Paulina"]
[Result "1-0"]
[Board "146"]
[TimeControl "180+1"]
[WhiteFideId "25195425"]
[BlackFideId "1124870"]
[WhiteElo "2296"]
[BlackElo "2223"]
[WhiteTeam "IND"]
[BlackTeam "POL"]
[WhiteClock "0:00:22"]
[BlackClock "0:00:25"]

1. d4 {[%clk 0:03:00]}  f5 {[%clk 0:02:59]} 2. Nf3 {[%clk 0:03:01]}  Nf6 {[%clk 0:02:59]} 3. Bg5 {[%clk 0:03:01]}  g6 {[%clk 0:02:58]} 4. Nc3 {[%clk 0:03:01]}  Bg7 {[%clk 0:02:58]} 5. Bxf6 {[%clk 0:03:00]}  Bxf6 {[%clk 0:02:57]} 6. e4 {[%clk 0:03:01]}  d6 {[%clk 0:02:54]} 7. Bd3 {[%clk 0:03:00]}  fxe4 {[%clk 0:02:50]} 8. Nxe4 {[%clk 0:03:01]}  Bg7 {[%clk 0:02:50]} 9. Qe2 {[%clk 0:02:59]}  O-O {[%clk 0:02:48]} 10. O-O-O {[%clk 0:02:59]}  Nc6 {[%clk 0:02:47]} 11. h4 {[%clk 0:03:00]}  Nxd4 {[%clk 0:02:40]} 12. Nxd4 {[%clk 0:02:59]}  Bxd4 {[%clk 0:02:39]} 13. Bc4+ {[%clk 0:02:59]}  d5 {[%clk 0:02:36]} 14. Rxd4 {[%clk 0:02:59]}  e6 {[%clk 0:02:36]} 15. Ng5 {[%clk 0:02:53]}  Qf6 {[%clk 0:02:33]} 16. Rg4 {[%clk 0:01:52]}  dxc4 {[%clk 0:02:29]} 17. Qxc4 {[%clk 0:01:51]}  Qf5 {[%clk 0:02:17]} 18. h5 {[%clk 0:01:49]}  b5 {[%clk 0:02:15]} 19. Qe2 {[%clk 0:01:48]}  e5 {[%clk 0:02:11]} 20. hxg6 {[%clk 0:01:40]}  Qxg4 {[%clk 0:02:10]} 21. gxh7+ {[%clk 0:01:41]}  Kg7 {[%clk 0:01:50]} 22. Qxe5+ {[%clk 0:01:41]}  Kg6 {[%clk 0:01:49]} 23. h8=Q {[%clk 0:01:38]}  Rxh8 {[%clk 0:01:43]} 24. Qxh8 {[%clk 0:01:37]}  Qxg5+ {[%clk 0:01:42]} 25. Kb1 {[%clk 0:01:38]}  Bb7 {[%clk 0:01:26]} 26. Qh7+ {[%clk 0:01:38]}  Kf6 {[%clk 0:01:25]} 27. Rh6+ {[%clk 0:01:37]}  Ke5 {[%clk 0:01:22]} 28. Qxc7+ {[%clk 0:01:37]}  Kf5 {[%clk 0:01:14]} 29. Qc5+ {[%clk 0:00:59]}  Kg4 {[%clk 0:01:02]} 30. Qb4+ {[%clk 0:00:44]}  Kf5 {[%clk 0:00:48]} 31. Qxb5+ {[%clk 0:00:44]}  Kg4 {[%clk 0:00:47]} 32. Qc4+ {[%clk 0:00:23]}  Kf5 {[%clk 0:00:46]} 33. g4+ {[%clk 0:00:21]}  Qxg4 {[%clk 0:00:37]} 34. Rf6+ {[%clk 0:00:20]}  Kxf6 {[%clk 0:00:37]} 35. Qxg4 {[%clk 0:00:21]}  Bd5 {[%clk 0:00:34]} 36. Qf4+ {[%clk 0:00:21]}  Ke6 {[%clk 0:00:34]} 37. b3 {[%clk 0:00:22]}  Rg8 {[%clk 0:00:30]} 38. Qe3+ {[%clk 0:00:21]}  Kd6 {[%clk 0:00:30]} 39. c4 {[%clk 0:00:22]}  Be6 {[%clk 0:00:30]} 40. f4 {[%clk 0:00:22]}  Rg1+ {[%clk 0:00:28]} 41. Qxg1 {[%clk 0:00:22]}  Bf5+ {[%clk 0:00:28]} 42. Kb2 {[%clk 0:00:21]}  a5 {[%clk 0:00:25]} 43. Qd4+ {[%clk 0:00:22]} 1-0